[Event "RUS-ch Men Blitz 2019"]
[Site "Sochi"]
[Date "2019.10.17"]
[Round "5.19"]
[White "Yatzenko, Anton"]
[Black "Popov, Valerij"]
[Result "1-0"]
[ECO "D02"]
[WhiteElo "2383"]
[BlackElo "2535"]
[Annotator "ChessBase"]
[PlyCount "70"]
[EventDate "2019.10.17"]
[EventType "swiss"]
[EventCountry "RUS"]
[SourceTitle "playchess.com"]
[Source "ChessBase"]
[SourceQuality "1"]
[TimeControl "180+2"]

1. d4 {[%emt 0:00:00]} d5 {[%emt 0:00:00]} 2. Nf3 {[%emt 0:00:00]} Nf6 {[%emt 0:00:01]} 3. Bf4 {[%emt 0:00:01]} e6 {[%emt 0:00:01]} 4. e3 {[%emt 0:00:00]} c5 {[%emt 0:00:01]} 5. Nbd2 {[%emt 0:00:02]} Nc6 {[%emt 0:00:02]} 6. c3 {[%emt 0:00:00]} Bd6 {[%emt 0:00:01]} 7. Bg3 {[%emt 0:00:01]} O-O {[%emt 0:00:01]} 8. Bd3 {[%emt 0:00:09]} b6 {[%emt 0:00:01]} 9. e4 {[%emt 0:00:01]} Be7 {[%emt 0:00:01]} 10. dxc5 {[%emt 0:00:15]} bxc5 {[%emt 0:00:06]} 11. O-O {[%emt 0:00:06]} Qb6 {[%emt 0:00:04]} 12. exd5 {[%emt 0:00:08]} exd5 {[%emt 0:00:01]} 13. Qc2 {[%emt 0:00:14]} c4 {[%emt 0:00:08]} 14. Be2 {[%emt 0:00:03]} g6 {[%emt 0:00:03]} 15. b3 {[%emt 0:00:14]} Bf5 16. Qc1 Qa5 {[%emt 0:00:37]} 17. b4 {[%emt 0:00:04]} Qb6 {[%emt 0:00:04]} 18. a4 {[%emt 0:00:02]} Nh5 {[%emt 0:00:14]} 19. b5 {[%emt 0:00:11]} Nxg3 {[%emt 0:00:09]} 20. hxg3 {[%emt 0:00:01]} Na5 {[%emt 0:00:09]} 21. Nd4 {[%emt 0:00:01]} Be6 {[%emt 0:00:05]} 22. Re1 {[%emt 0:00:24]} Bf6 {[%emt 0:00:03]} 23. N2f3 {[%emt 0:00:24]} Nb3 {[%emt 0:00:08]} 24. Nxb3 {[%emt 0:00:02]} cxb3 {[%emt 0:00:01]} 25. Qb2 {[%emt 0:00:01]} Rfc8 {[%emt 0:00:10]} 26. Nd4 {[%emt 0:00:03]} Qa5 {[%emt 0:00:13]} 27. Rac1 {[%emt 0:00:40]} Bxd4 {[%emt 0:00:05]} 28. cxd4 {[%emt 0:00:02]} Qb4 {[%emt 0:00:01]} 29. Rb1 {[%emt 0:00:11]} Rc3 {[%emt 0:00:03]} 30. Bd1 {[%emt 0:00:10]} Bf5 {[%emt 0:00:01]} 31. Bxb3 {[%emt 0:00:20]} Bxb1 {[%emt 0:00:03]} 32. Rxb1 {[%emt 0:00:01]} Rd8 {[%emt 0:00:09]} 33. Qa2 {[%emt 0:00:05]} Qxd4 {[%emt 0:00:03]} 34. Rd1 {[%emt 0:00:01]} Rd3 {[%emt 0:00:03]} 35. Re1 {[%emt 0:00:03]} Rd2 {[%emt 0:00:01]} 1-0

[Event "RUS-ch Men Blitz 2019"]
[Site "Sochi"]
[Date "2019.10.20"]
[Round "5.20"]
[White "Oganian, Miran"]
[Black "Dudin, Gleb"]
[Result "1-0"]
[ECO "A40"]
[WhiteElo "2436"]
[BlackElo "2314"]
[Annotator "NA"]
[PlyCount "57"]
[EventDate "2019.10.17"]
[EventType "swiss"]
[EventCountry "RUS"]
[SourceTitle "playchess.com"]
[Source "ChessBase"]
[SourceQuality "1"]
[TimeControl "180+2"]

1. d4 {[%emt 0:00:00]} g6 {[%emt 0:00:00]} 2. c4 {[%emt 0:00:01]} Bg7 {[%emt 0:00:00]} 3. Nf3 {[%emt 0:00:01]} d6 {[%emt 0:00:00]} 4. Nc3 {[%emt 0:00:01]} Bg4 {[%emt 0:00:01]} 5. g3 {[%emt 0:00:02]} Bxf3 {[%emt 0:00:02]} 6. exf3 {[%emt 0:00:01]} Nc6 {[%emt 0:00:17]} 7. Be3 {[%emt 0:00:03]} Nh6 {[%emt 0:00:01]} 8. d5 {[%emt 0:00:18]} Ne5 {[%emt 0:00:16]} 9. f4 {[%emt 0:00:03]} Nd7 {[%emt 0:00:20]} 10. Bh3 {[%emt 0:00:01]} O-O {[%emt 0:00:17]} 11. O-O {[%emt 0:00:02]} c6 {[%emt 0:00:05]} 12. Re1 {[%emt 0:00:05]} cxd5 {[%emt 0:00:01]} 13. cxd5 {[%emt 0:00:03]} a6 {[%emt 0:00:42]} 14. Bd4 {[%emt 0:00:10]} Re8 {[%emt 0:01:06]} 15. Bxg7 Kxg7 16. Qd4+ {[%emt 0:00:08]} Kg8 {[%emt 0:00:03]} 17. Rad1 {[%emt 0:00:18]} Rc8 {[%emt 0:00:07]} 18. Re2 {[%emt 0:00:02]} Rc5 {[%emt 0:00:07]} 19. Rde1 {[%emt 0:00:07]} Rc7 20. Ne4 {[%emt 0:00:06]} Nf5 {[%emt 0:00:11]} 21. Bxf5 gxf5 22. Nxd6 Rf8 23. Nxf5 Nf6 24. Nxe7+ {[%emt 0:00:28]} Rxe7 {[%emt 0:00:01]} 25. Rxe7 {[%emt 0:00:08]} Qd6 {[%emt 0:00:01]} 26. Qe5 {[%emt 0:00:10]} Rd8 {[%emt 0:00:06]} 27. Qxd6 {[%emt 0:00:14]} Rxd6 {[%emt 0:00:00]} 28. Rxb7 {[%emt 0:00:02]} Nxd5 {[%emt 0:00:02]} 29. Rd1 {[%emt 0:00:02]} 1-0

[Event "RUS-ch Men Blitz 2019"]
[Site "Sochi"]
[Date "2019.10.17"]
[Round "5.21"]
[White "Gurvich, Vitaly"]
[Black "Lugovskoy, Maxim"]
[Result "0-1"]
[ECO "D30"]
[WhiteElo "2278"]
[BlackElo "2436"]
[Annotator "NA RC"]
[PlyCount "108"]
[EventDate "2019.10.17"]
[EventType "swiss"]
[EventCountry "RUS"]
[SourceTitle "playchess.com"]
[Source "ChessBase"]
[SourceQuality "1"]
[TimeControl "180+2"]

1. d4 {[%emt 0:00:00]} d5 {[%emt 0:00:00]} 2. c4 {[%emt 0:00:01]} e6 {[%emt 0:00:00]} 3. Nf3 {[%emt 0:00:01]} a6 {[%emt 0:00:00]} 4. Bg5 {[%emt 0:00:14]} Be7 {[%emt 0:00:01]} 5. Bxe7 {[%emt 0:00:01]} Qxe7 {[%emt 0:00:01]} 6. Nbd2 {[%emt 0:00:01]} Nf6 {[%emt 0:00:01]} 7. e3 {[%emt 0:00:01]} O-O {[%emt 0:00:01]} 8. Bd3 {[%emt 0:00:09]} Nc6 {[%emt 0:00:07]} 9. cxd5 {[%emt 0:00:10]} exd5 {[%emt 0:00:01]} 10. Rc1 {[%emt 0:00:01]} Nb8 {[%emt 0:00:05]} 11. O-O {[%emt 0:00:05]} c6 {[%emt 0:00:01]} 12. Ne5 {[%emt 0:00:01]} Nbd7 {[%emt 0:00:02]} 13. f4 {[%emt 0:00:07]} Re8 {[%emt 0:00:06]} 14. Qf3 {[%emt 0:00:03]} Nf8 {[%emt 0:00:01]} 15. a3 {[%emt 0:00:07]} a5 {[%emt 0:00:05]} 16. h3 {[%emt 0:00:05]} N6d7 {[%emt 0:00:01]} 17. Rce1 {[%emt 0:00:19]} Qd6 {[%emt 0:00:21]} 18. Qh5 {[%emt 0:00:10]} g6 {[%emt 0:00:16]} 19. Qh4 {[%emt 0:00:01]} Qf6 {[%emt 0:00:29]} 20. Qg3 {[%emt 0:00:08]} c5 {[%emt 0:00:18]} 21. f5 {[%emt 0:00:16]} g5 {[%emt 0:00:23]} 22. Ng4 {[%emt 0:00:13]} Qb6 {[%emt 0:00:08]} 23. f6 {[%emt 0:00:00]} Ne6 {[%emt 0:00:26]} 24. Bf5 {[%emt 0:00:15]} Kf8 {[%emt 0:00:03]} 25. Nf3 {[%emt 0:00:25]} h5 {[%emt 0:00:03]} 26. Nh6 {[%emt 0:00:05]} h4 {[%emt 0:00:02]} 27. Nxh4 {[%emt 0:00:07]} Nxf6 {[%emt 0:00:01]} 28. Bxe6 {[%emt 0:00:09]} Rxe6 {[%emt 0:00:04]} 29. Qxg5 {[%emt 0:00:03]} cxd4 {[%emt 0:00:36]} 30. N4f5 {[%emt 0:00:01]} dxe3 {[%emt 0:00:03]} 31. Qg7+ {[%emt 0:00:01]} Ke8 {[%emt 0:00:01]} 32. Qxf7+ Kd8 33. Kh1 {[%emt 0:00:13]} Bd7 {[%emt 0:00:01]} 34. Rxe3 {[%emt 0:00:08]} Ne4 {[%emt 0:00:15]} 35. Ref3 {[%emt 0:00:13]} Kc7 {[%emt 0:00:01]} 36. Ng4 {[%emt 0:00:08]} Rd8 {[%emt 0:00:04]} 37. Qg7 {[%emt 0:00:03]} Kb8 {[%emt 0:00:01]} 38. Qd4 {[%emt 0:00:02]} Ka8 {[%emt 0:00:01]} 39. Qxb6 {[%emt 0:00:06]} Rxb6 {[%emt 0:00:01]} 40. Rd1 {[%emt 0:00:03]} Bxf5 {[%emt 0:00:01]} 41. Ne3 {[%emt 0:00:02]} Be6 {[%emt 0:00:01]} 42. b4 {[%emt 0:00:02]} axb4 {[%emt 0:00:02]} 43. axb4 {[%emt 0:00:01]} Rxb4 44. Nc2 {[%emt 0:00:01]} Rb2 {[%emt 0:00:02]} 45. Nd4 {[%emt 0:00:01]} Bd7 {[%emt 0:00:02]} 46. Ra1+ {[%emt 0:00:02]} Kb8 {[%emt 0:00:00]} 47. Rfa3 {[%emt 0:00:02]} Kc7 {[%emt 0:00:07]} 48. Rc1+ {[%emt 0:00:03]} Kd6 {[%emt 0:00:01]} 49. Nf3 {[%emt 0:00:05]} Rg8 {[%emt 0:00:03]} 50. Ne1 {[%emt 0:00:00]} Nf2+ {[%emt 0:00:02]} 51. Kh2 {[%emt 0:00:01]} Nxh3 {[%emt 0:00:03]} 52. Rf3 {[%emt 0:00:04]} Ng5 {[%emt 0:00:03]} 53. Rf6+ {[%emt 0:00:01]} Be6 {[%emt 0:00:01]} 54. Rc3 {[%emt 0:00:03]} Ne4 {[%emt 0:00:01]} 0-1

[Event "RUS-ch Men Blitz 2019"]
[Site "Sochi"]
[Date "2019.10.17"]
[Round "5.22"]
[White "Papin, Vasily"]
[Black "Mikhailovsky, Vladimir"]
[Result "1-0"]
[ECO "A29"]
[WhiteElo "2481"]
[BlackElo "2209"]
[Annotator "ChessBase"]
[PlyCount "63"]
[EventDate "2019.10.17"]
[EventType "swiss"]
[EventCountry "RUS"]
[SourceTitle "playchess.com"]
[Source "ChessBase"]
[SourceQuality "1"]
[TimeControl "180+2"]

1. c4 {[%emt 0:00:00]} Nf6 {[%emt 0:00:00]} 2. Nc3 {[%emt 0:00:00]} e5 {[%emt 0:00:01]} 3. Nf3 {[%emt 0:00:02]} Nc6 {[%emt 0:00:01]} 4. g3 {[%emt 0:00:01]} Bc5 {[%emt 0:00:03]} 5. Bg2 {[%emt 0:00:07]} O-O {[%emt 0:00:02]} 6. O-O {[%emt 0:00:03]} d6 {[%emt 0:00:04]} 7. Na4 {[%emt 0:00:02]} Bg4 {[%emt 0:00:07]} 8. d3 {[%emt 0:00:06]} Qe7 {[%emt 0:00:03]} 9. a3 {[%emt 0:00:38]} a6 {[%emt 0:00:02]} 10. b4 {[%emt 0:00:15]} Ba7 {[%emt 0:00:02]} 11. Bb2 {[%emt 0:00:01]} Rad8 {[%emt 0:00:10]} 12. Re1 {[%emt 0:00:02]} e4 {[%emt 0:00:09]} 13. dxe4 {[%emt 0:00:06]} Nxe4 {[%emt 0:00:02]} 14. Rf1 {[%emt 0:00:24]} Rfe8 {[%emt 0:00:14]} 15. Nc3 {[%emt 0:00:01]} Nxc3 {[%emt 0:00:22]} 16. Bxc3 {[%emt 0:00:01]} Qxe2 {[%emt 0:00:01]} 17. b5 {[%emt 0:00:19]} axb5 {[%emt 0:00:05]} 18. Qxe2 {[%emt 0:00:06]} Rxe2 {[%emt 0:00:03]} 19. cxb5 {[%emt 0:00:00]} Ne7 {[%emt 0:00:17]} 20. Nd4 {[%emt 0:00:05]} Re5 {[%emt 0:00:14]} 21. a4 {[%emt 0:00:14]} Rc5 {[%emt 0:00:08]} 22. Bb2 {[%emt 0:00:03]} Rc4 {[%emt 0:00:12]} 23. Rfe1 {[%emt 0:00:27]} Kf8 {[%emt 0:00:14]} 24. Re4 {[%emt 0:00:06]} f5 {[%emt 0:00:15]} 25. Ne6+ {[%emt 0:00:01]} Kg8 {[%emt 0:00:28]} 26. Rxc4 {[%emt 0:00:02]} Re8 {[%emt 0:00:02]} 27. Rxc7 {[%emt 0:00:05]} f4 {[%emt 0:00:16]} 28. Rxb7 {[%emt 0:00:05]} fxg3 {[%emt 0:00:10]} 29. Rxa7 {[%emt 0:00:04]} gxf2+ {[%emt 0:00:01]} 30. Kxf2 {[%emt 0:00:02]} Bxe6 {[%emt 0:00:01]} 31. Re1 {[%emt 0:00:04]} Nf5 {[%emt 0:00:07]} 32. Rxe6 {[%emt 0:00:05]} 1-0

[Event "RUS-ch Men Blitz 2019"]
[Site "Sochi"]
[Date "2019.10.20"]
[Round "5.23"]
[White "Pingin, Artem"]
[Black "Ivlev, Aleksey"]
[Result "0-1"]
[ECO "B10"]
[WhiteElo "1968"]
[BlackElo "2292"]
[Annotator "NA"]
[PlyCount "154"]
[EventDate "2019.10.17"]
[EventType "swiss"]
[EventCountry "RUS"]
[SourceTitle "playchess.com"]
[Source "ChessBase"]
[SourceQuality "1"]
[TimeControl "180+2"]

1. e4 {[%emt 0:00:00]} c6 {[%emt 0:00:00]} 2. Nc3 {[%emt 0:00:01]} g6 {[%emt 0:00:00]} 3. d4 {[%emt 0:00:01]} Bg7 {[%emt 0:00:00]} 4. Be3 {[%emt 0:00:01]} d5 {[%emt 0:00:01]} 5. e5 {[%emt 0:00:06]} Nh6 {[%emt 0:00:01]} 6. f4 {[%emt 0:00:05]} O-O {[%emt 0:00:12]} 7. Nf3 {[%emt 0:00:01]} f6 {[%emt 0:00:01]} 8. Bd3 {[%emt 0:00:06]} Qb6 {[%emt 0:00:07]} 9. a3 {[%emt 0:00:30]} Nf7 {[%emt 0:00:06]} 10. Bf2 {[%emt 0:00:31]} Bg4 {[%emt 0:00:02]} 11. O-O {[%emt 0:00:08]} Qc7 {[%emt 0:00:23]} 12. Be2 {[%emt 0:00:16]} Na6 {[%emt 0:00:12]} 13. b4 {[%emt 0:00:09]} Rad8 {[%emt 0:00:02]} 14. h3 {[%emt 0:00:03]} Bc8 {[%emt 0:00:09]} 15. Qd2 {[%emt 0:00:22]} Qb8 {[%emt 0:00:03]} 16. Bxa6 {[%emt 0:00:07]} bxa6 {[%emt 0:00:01]} 17. Na4 {[%emt 0:00:00]} fxe5 {[%emt 0:00:29]} 18. fxe5 {[%emt 0:00:03]} Nh6 {[%emt 0:00:01]} 19. Nc5 {[%emt 0:00:05]} Bxh3 {[%emt 0:00:18]} 20. Ng5 {[%emt 0:00:05]} Bf5 {[%emt 0:00:02]} 21. Nge6 {[%emt 0:00:05]} Qc8 {[%emt 0:00:06]} 22. Nxd8 {[%emt 0:00:11]} Rxd8 {[%emt 0:00:02]} 23. Bh4 {[%emt 0:00:08]} Re8 {[%emt 0:00:04]} 24. Rae1 {[%emt 0:00:14]} e6 {[%emt 0:00:19]} 25. Bf6 {[%emt 0:00:05]} Bf8 {[%emt 0:00:09]} 26. c3 {[%emt 0:00:13]} Ng4 {[%emt 0:00:02]} 27. Bg5 {[%emt 0:00:04]} Bg7 {[%emt 0:00:25]} 28. Qe2 {[%emt 0:00:10]} a5 {[%emt 0:00:10]} 29. bxa5 {[%emt 0:00:02]} Qc7 {[%emt 0:00:01]} 30. a6 {[%emt 0:00:01]} Qa5 {[%emt 0:00:04]} 31. Qb2 {[%emt 0:00:00]} Nxe5 {[%emt 0:00:06]} 32. Qb4 {[%emt 0:00:02]} Qxb4 {[%emt 0:00:06]} 33. axb4 {[%emt 0:00:01]} Nf7 {[%emt 0:00:04]} 34. Bf4 {[%emt 0:00:01]} g5 {[%emt 0:00:03]} 35. Be5 {[%emt 0:00:02]} Nxe5 {[%emt 0:00:02]} 36. dxe5 {[%emt 0:00:00]} g4 {[%emt 0:00:01]} 37. Nb7 {[%emt 0:00:02]} Bf8 {[%emt 0:00:02]} 38. Nd6 {[%emt 0:00:02]} Bxd6 {[%emt 0:00:03]} 39. exd6 {[%emt 0:00:01]} Rd8 {[%emt 0:00:00]} 40. c4 {[%emt 0:00:05]} Rxd6 {[%emt 0:00:04]} 41. cxd5 {[%emt 0:00:01]} cxd5 {[%emt 0:00:01]} 42. b5 {[%emt 0:00:06]} d4 {[%emt 0:00:01]} 43. Rxf5 {[%emt 0:00:06]} exf5 {[%emt 0:00:02]} 44. Kf2 {[%emt 0:00:01]} d3 {[%emt 0:00:05]} 45. Rd1 {[%emt 0:00:01]} Kf7 {[%emt 0:00:05]} 46. Ke3 {[%emt 0:00:01]} Ke6 {[%emt 0:00:01]} 47. Rxd3 {[%emt 0:00:03]} Rb6 {[%emt 0:00:01]} 48. Rb3 {[%emt 0:00:02]} Ke5 {[%emt 0:00:01]} 49. Kf2 {[%emt 0:00:01]} f4 {[%emt 0:00:01]} 50. Rb4 {[%emt 0:00:02]} h5 {[%emt 0:00:01]} 51. Rb1 {[%emt 0:00:03]} Kd5 {[%emt 0:00:09]} 52. Rd1+ {[%emt 0:00:03]} Kc5 {[%emt 0:00:01]} 53. Rd7 {[%emt 0:00:01]} Kxb5 {[%emt 0:00:02]} 54. Rxa7 {[%emt 0:00:00]} Rxa6 {[%emt 0:00:02]} 55. Rh7 {[%emt 0:00:02]} Ra2+ {[%emt 0:00:03]} 56. Kf1 {[%emt 0:00:01]} Kc4 {[%emt 0:00:05]} 57. Rxh5 {[%emt 0:00:01]} Kd4 {[%emt 0:00:01]} 58. Rg5 {[%emt 0:00:02]} g3 {[%emt 0:00:01]} 59. Rg8 {[%emt 0:00:02]} Ra5 {[%emt 0:00:05]} 60. Re8 {[%emt 0:00:02]} Re5 {[%emt 0:00:01]} 61. Rd8+ {[%emt 0:00:01]} Ke4 {[%emt 0:00:01]} 62. Ra8 {[%emt 0:00:02]} Kf5 {[%emt 0:00:01]} 63. Rf8+ {[%emt 0:00:01]} Ke4 64. Ra8 Re6 {[%emt 0:00:06]} 65. Ra7 {[%emt 0:00:02]} Kf5 {[%emt 0:00:03]} 66. Ra5+ {[%emt 0:00:01]} Kg4 {[%emt 0:00:01]} 67. Ra4 {[%emt 0:00:01]} Rb6 {[%emt 0:00:01]} 68. Rc4 {[%emt 0:00:02]} Rb1+ {[%emt 0:00:01]} 69. Ke2 {[%emt 0:00:02]} Rg1 {[%emt 0:00:01]} 70. Rc8 {[%emt 0:00:02]} Rxg2+ {[%emt 0:00:02]} 71. Kd3 {[%emt 0:00:01]} Ra2 {[%emt 0:00:01]} 72. Rg8+ {[%emt 0:00:01]} Kf3 {[%emt 0:00:01]} 73. Rg7 {[%emt 0:00:01]} g2 {[%emt 0:00:01]} 74. Rg8 {[%emt 0:00:02]} Kf2 {[%emt 0:00:01]} 75. Ke4 {[%emt 0:00:01]} f3 {[%emt 0:00:02]} 76. Rf8 {[%emt 0:00:02]} Ra4+ {[%emt 0:00:01]} 77. Kd3 {[%emt 0:00:01]} g1=Q {[%emt 0:00:01] Kd4} 0-1

[Event "RUS-ch Men Blitz 2019"]
[Site "Sochi"]
[Date "2019.10.17"]
[Round "5.24"]
[White "Sadovsky, Artem"]
[Black "Gogolev, Artem"]
[Result "1-0"]
[ECO "A15"]
[WhiteElo "2411"]
[BlackElo "2339"]
[Annotator "NA"]
[PlyCount "76"]
[EventDate "2019.10.17"]
[EventType "swiss"]
[EventCountry "RUS"]
[SourceTitle "playchess.com"]
[Source "ChessBase"]
[SourceQuality "1"]
[TimeControl "180+2"]

1. c4 {[%emt 0:00:00]} Nf6 {[%emt 0:00:20]} 2. g3 {[%emt 0:00:00]} c5 {[%emt 0:00:03]} 3. Bg2 {[%emt 0:00:01]} e6 {[%emt 0:00:01]} 4. b3 {[%emt 0:00:03]} Be7 {[%emt 0:00:03]} 5. Bb2 {[%emt 0:00:01]} O-O {[%emt 0:00:02]} 6. Nf3 {[%emt 0:00:02]} d5 {[%emt 0:00:01]} 7. cxd5 {[%emt 0:00:01]} Nxd5 {[%emt 0:00:01]} 8. Nc3 {[%emt 0:00:02]} Bf6 9. Qc1 Nc6 {[%emt 0:00:27]} 10. O-O {[%emt 0:00:03]} Nxc3 {[%emt 0:00:03]} 11. Bxc3 {[%emt 0:00:02]} Bxc3 {[%emt 0:00:11]} 12. Qxc3 {[%emt 0:00:01]} Nd4 {[%emt 0:00:17]} 13. Rfe1 {[%emt 0:00:20]} Nxf3+ {[%emt 0:00:04]} 14. Bxf3 {[%emt 0:00:01]} Rb8 {[%emt 0:00:28]} 15. Qxc5 {[%emt 0:00:02]} Qxd2 {[%emt 0:00:03]} 16. Qxa7 {[%emt 0:00:07]} Bd7 {[%emt 0:00:11]} 17. Bxb7 {[%emt 0:00:08]} e5 {[%emt 0:00:09]} 18. Rad1 {[%emt 0:00:25]} Qb4 {[%emt 0:00:04]} 19. Bd5 {[%emt 0:00:23]} Bh3 {[%emt 0:00:13]} 20. a3 {[%emt 0:00:02]} Qc3 {[%emt 0:00:04]} 21. a4 {[%emt 0:00:20]} e4 {[%emt 0:00:22]} 22. Qe3 {[%emt 0:00:06]} Qxe3 {[%emt 0:00:13]} 23. fxe3 {[%emt 0:00:01]} Be6 {[%emt 0:00:01]} 24. Bxe6 {[%emt 0:00:12]} fxe6 {[%emt 0:00:01]} 25. Rb1 {[%emt 0:00:03]} Rb4 {[%emt 0:00:02]} 26. Rb2 {[%emt 0:00:04]} Ra8 {[%emt 0:00:10]} 27. Ra1 {[%emt 0:00:02]} Ra5 {[%emt 0:00:03]} 28. Kf2 {[%emt 0:00:03]} Kf7 {[%emt 0:00:01]} 29. Ra3 {[%emt 0:00:04]} Ke7 {[%emt 0:00:04]} 30. Rc2 {[%emt 0:00:03]} Kd6 {[%emt 0:00:01]} 31. Rc3 {[%emt 0:00:08]} Rb7 {[%emt 0:00:05]} 32. Ra1 {[%emt 0:00:08]} Ke5 {[%emt 0:00:04]} 33. Rd1 {[%emt 0:00:04]} Ra8 {[%emt 0:00:04]} 34. Ra1 {[%emt 0:00:22]} Rf8+ {[%emt 0:00:04]} 35. Kg2 {[%emt 0:00:01]} Rbf7 {[%emt 0:00:04]} 36. Rc2 {[%emt 0:00:10]} Rb7 {[%emt 0:00:05]} 37. Rb2 {[%emt 0:00:05]} Rfb8 {[%emt 0:00:05]} 38. Ra3 {[%emt 0:00:02]} Ra8 {[%emt 0:00:02]} 1-0

[Event "RUS-ch Men Blitz 2019"]
[Site "Sochi"]
[Date "2019.10.20"]
[Round "5.25"]
[White "Shemyakin, Valeriy"]
[Black "Smirnov, Timofey"]
[Result "0-1"]
[ECO "D11"]
[WhiteElo "2192"]
[BlackElo "2431"]
[Annotator "NA"]
[PlyCount "104"]
[EventDate "2019.10.17"]
[EventType "swiss"]
[EventCountry "RUS"]
[SourceTitle "playchess.com"]
[Source "ChessBase"]
[SourceQuality "1"]
[TimeControl "180+2"]

1. d4 {[%emt 0:00:04]} d5 {[%emt 0:00:00]} 2. c4 {[%emt 0:00:01]} c6 {[%emt 0:00:00]} 3. Nf3 {[%emt 0:00:01]} Nf6 {[%emt 0:00:00]} 4. Qb3 {[%emt 0:00:00]} dxc4 {[%emt 0:00:01]} 5. Qxc4 {[%emt 0:00:01]} Bf5 {[%emt 0:00:00]} 6. g3 {[%emt 0:00:01]} e6 {[%emt 0:00:01]} 7. Bg2 {[%emt 0:00:01]} Nbd7 {[%emt 0:00:01]} 8. O-O {[%emt 0:00:02]} Be7 {[%emt 0:00:00]} 9. Nc3 {[%emt 0:00:02]} O-O {[%emt 0:00:03]} 10. Re1 {[%emt 0:00:01]} Ne4 {[%emt 0:00:11]} 11. Qb3 {[%emt 0:00:01]} Qb6 {[%emt 0:00:06]} 12. Nh4 {[%emt 0:00:00]} Nd6 {[%emt 0:00:08]} 13. Nxf5 {[%emt 0:00:27]} Nxf5 {[%emt 0:00:01]} 14. Rd1 {[%emt 0:00:20]} Rfd8 {[%emt 0:00:09]} 15. e4 {[%emt 0:00:07]} Nxd4 {[%emt 0:00:02]} 16. Qxb6 {[%emt 0:00:02]} Nxb6 {[%emt 0:00:00]} 17. Be3 {[%emt 0:00:32]} Nc2 {[%emt 0:00:04]} 18. Rxd8+ {[%emt 0:00:02]} Rxd8 {[%emt 0:00:04]} 19. Bxb6 {[%emt 0:00:06]} axb6 {[%emt 0:00:01]} 20. Rc1 {[%emt 0:00:00]} Nb4 {[%emt 0:00:05]} 21. Bf1 {[%emt 0:00:15]} Nd3 {[%emt 0:00:05]} 22. Rc2 {[%emt 0:00:15]} b5 {[%emt 0:00:25]} 23. Rd2 {[%emt 0:00:12]} Nc5 {[%emt 0:00:01]} 24. Rxd8+ {[%emt 0:00:02]} Bxd8 {[%emt 0:00:01]} 25. a3 {[%emt 0:00:06]} Bf6 {[%emt 0:00:05]} 26. f3 {[%emt 0:00:29]} Bd4+ {[%emt 0:00:02]} 27. Kg2 {[%emt 0:00:02]} Na4 {[%emt 0:00:22]} 28. Nxa4 {[%emt 0:00:30]} bxa4 {[%emt 0:00:00]} 29. b3 {[%emt 0:00:02]} axb3 {[%emt 0:00:04]} 30. Bd3 {[%emt 0:00:01]} b5 {[%emt 0:00:01]} 31. Kf1 {[%emt 0:00:10]} Bc5 {[%emt 0:00:15]} 32. Ke2 {[%emt 0:00:03]} Bxa3 {[%emt 0:00:01]} 33. Kd2 {[%emt 0:00:02]} Bb4+ {[%emt 0:00:01]} 34. Kc1 {[%emt 0:00:01]} Bc3 {[%emt 0:00:07]} 35. f4 {[%emt 0:00:03]} Kf8 {[%emt 0:00:16]} 36. e5 {[%emt 0:00:01]} g6 {[%emt 0:00:10]} 37. Be4 {[%emt 0:00:00]} c5 {[%emt 0:00:08]} 38. Bc6 {[%emt 0:00:01]} b4 {[%emt 0:00:13]} 39. Ba4 {[%emt 0:00:00]} b2+ {[%emt 0:00:06]} 40. Kc2 {[%emt 0:00:05]} Bd4 {[%emt 0:00:07]} 41. Bb5 {[%emt 0:00:06]} Bg1 {[%emt 0:00:25]} 42. h3 {[%emt 0:00:02]} Bh2 {[%emt 0:00:01]} 43. Kxb2 {[%emt 0:00:03]} Bxg3 {[%emt 0:00:01]} 44. Kb3 {[%emt 0:00:01]} Bxf4 {[%emt 0:00:01]} 45. Kc4 {[%emt 0:00:01]} Be3 {[%emt 0:00:03]} 46. Bc6 {[%emt 0:00:02]} Bd4 {[%emt 0:00:05]} 47. Bb5 {[%emt 0:00:02]} h5 {[%emt 0:00:03]} 48. Ba4 {[%emt 0:00:02]} Kg7 {[%emt 0:00:08]} 49. Be8 {[%emt 0:00:02]} Bxe5 {[%emt 0:00:04]} 50. Kxc5 {[%emt 0:00:02]} b3 {[%emt 0:00:01]} 51. Ba4 {[%emt 0:00:01]} b2 {[%emt 0:00:01]} 52. Bc2 {[%emt 0:00:01]} f5 {[%emt 0:00:01] Kd4} 0-1

[Event "RUS-ch Men Blitz 2019"]
[Site "Sochi"]
[Date "2019.10.17"]
[Round "5.28"]
[White "Glek, Igor"]
[Black "Kryzhanovskiy, Mikhail"]
[Result "1/2-1/2"]
[ECO "B40"]
[WhiteElo "2467"]
[BlackElo "2064"]
[Annotator "ChessBase"]
[PlyCount "65"]
[EventDate "2019.10.17"]
[EventType "swiss"]
[EventCountry "RUS"]
[SourceTitle "playchess.com"]
[Source "ChessBase"]
[SourceQuality "1"]
[TimeControl "180+2"]

1. e4 {[%emt 0:00:00]} c5 {[%emt 0:00:00]} 2. Nf3 {[%emt 0:00:00]} e6 {[%emt 0:00:00]} 3. Nc3 {[%emt 0:00:01]} a6 {[%emt 0:00:02]} 4. g3 {[%emt 0:00:01]} Nc6 {[%emt 0:00:03]} 5. Bg2 {[%emt 0:00:02]} d6 {[%emt 0:00:03]} 6. O-O {[%emt 0:00:02]} Nf6 {[%emt 0:00:01]} 7. d3 {[%emt 0:00:05]} Be7 {[%emt 0:00:02]} 8. Ng5 {[%emt 0:00:01]} h6 {[%emt 0:00:07]} 9. Nh3 {[%emt 0:00:01]} Qc7 {[%emt 0:00:08]} 10. f4 {[%emt 0:00:01]} Bd7 {[%emt 0:00:10]} 11. Kh1 {[%emt 0:00:08]} Nd4 {[%emt 0:00:10]} 12. Nb1 {[%emt 0:00:09]} Bc6 {[%emt 0:00:16]} 13. a4 {[%emt 0:00:14]} Bd7 {[%emt 0:00:41]} 14. Nd2 {[%emt 0:00:07]} Rb8 {[%emt 0:00:20]} 15. c3 {[%emt 0:00:12]} Nc6 {[%emt 0:00:02]} 16. Nc4 {[%emt 0:00:06]} b5 {[%emt 0:00:07]} 17. axb5 {[%emt 0:00:02]} axb5 {[%emt 0:00:01]} 18. Ne3 {[%emt 0:00:00]} b4 {[%emt 0:00:05]} 19. d4 {[%emt 0:00:11]} bxc3 {[%emt 0:00:05]} 20. bxc3 {[%emt 0:00:02]} cxd4 {[%emt 0:00:04]} 21. cxd4 {[%emt 0:00:01]} O-O {[%emt 0:00:03]} 22. e5 {[%emt 0:00:26]} Nh7 {[%emt 0:00:13]} 23. d5 {[%emt 0:00:09]} Nb4 {[%emt 0:00:10]} 24. dxe6 {[%emt 0:00:15]} Bxe6 {[%emt 0:00:08]} 25. f5 {[%emt 0:00:03]} Bd7 {[%emt 0:00:09]} 26. f6 {[%emt 0:00:05]} gxf6 {[%emt 0:00:03]} 27. exd6 {[%emt 0:00:10]} Qxd6 {[%emt 0:00:10]} 28. Qh5 {[%emt 0:00:17]} Rb5 {[%emt 0:00:22]} 29. Qxh6 {[%emt 0:00:10]} Bc6 {[%emt 0:00:03]} 30. Rf4 {[%emt 0:00:30]} Bxg2+ {[%emt 0:00:02]} 31. Kxg2 {[%emt 0:00:02]} Nd3 {[%emt 0:00:06]} 32. Rh4 {[%emt 0:00:06]} Qc6+ 33. Kg1 1/2-1/2